bitfinex-derivatives/quotes_ETHF0:USTF0_20260208
["timestamp","ask_amount","ask_price","bid_price","bid_amount"]
[1770569354611,0.56092952,2088.7,2087.5,0.48932268]
[1770569355111,0.56092952,2088.7,2087.5,0.00610598]
[1770569355308,0.56092952,2088.7,2087.0,0.1]
[1770569355709,0.57860457,2088.6,2087.0,0.1]
[1770569356421,0.57860457,2088.4,2087.0,0.10605849]
[1770569356814,0.57860457,2088.2,2087.0,0.10605849]
[1770569357223,0.57860457,2088.2,2086.8,0.02449695]
[1770569358119,0.57860457,2088.1,2086.1,0.80749246]
[1770569358315,0.57860457,2088.1,2086.2,0.56763246]
[1770569358920,0.57860457,2087.9,2086.3,0.56763246]
[1770569359423,0.57860457,2087.9,2085.7,0.44223241]
[1770569359424,0.57860457,2087.9,2085.7,0.56763246]
[1770569359622,0.57860457,2087.0,2084.2,0.56763246]
[1770569359824,0.57860457,2087.0,2083.5,5.62197061]
[1770569359825,0.57860457,2086.6,2084.1,0.24009]
[1770569360014,0.57860457,2086.5,2084.1,0.24009]
[1770569360215,0.57860457,2086.4,2084.1,0.24353615]
[1770569360424,0.57860457,2086.4,2084.1,0.81116861]
[1770569360726,0.57860457,2086.4,2084.8,0.56763246]
[1770569361217,0.57860457,2086.4,2084.7,0.24002]
[1770569361218,0.57860457,2086.2,2084.2,0.56763246]
[1770569361416,0.57860457,2086.2,2084.8,0.56763246]
[1770569361727,0.57860457,2086.2,2084.7,0.80764246]
[1770569361919,0.57860457,2086.2,2084.7,0.24001]
[1770569362311,0.57860457,2086.0,2084.7,0.24001]
[1770569363125,0.57860457,2086.0,2084.1,0.00344615]
[1770569363423,40.8,2086.1,2082.6,1.10521]
[1770569363424,0.57860457,2085.4,2083.6,0.80777246]
[1770569363721,0.57860457,2085.4,2083.9,0.24011]
[1770569363920,0.57860457,2085.4,2083.5,0.56763246]
[1770569364117,0.57860457,2085.4,2082.6,1.10522]
[1770569364118,0.57860457,2085.2,2083.7,0.24013]
[1770569364325,0.57860457,2085.2,2084.4,0.56763246]
[1770569364528,40.8,2086.1,2084.1,0.24009]
[1770569364529,0.57860457,2085.5,2084.1,0.24009]
[1770569364824,0.57860457,2085.5,2084.3,0.56763246]
[1770569366531,0.57860457,2085.5,2083.8,0.56763246]
[1770569366925,0.57860457,2085.5,2083.7,0.00521039]
[1770569367314,0.57860457,2085.4,2083.7,0.00521039]
[1770569367517,0.57860457,2085.2,2083.7,0.00521039]
[1770569367719,0.57860457,2085.0,2083.7,0.00521039]
[1770569367925,0.57860457,2084.8,2083.7,0.00521039]
[1770569368319,0.57860457,2084.8,2083.7,0.57284285]
[1770569368618,0.57860457,2084.8,2083.7,0.24535039]
[1770569368824,0.57860457,2084.8,2082.8,0.56763246]
[1770569369021,0.57860457,2084.6,2083.4,0.56763246]
[1770569369219,0.57860457,2084.6,2083.5,0.56763246]
[1770569369425,41.37860457,2084.9,2083.6,0.80778246]
[1770569369726,41.37860457,2084.9,2083.7,0.56763246]
[1770569370123,0.57860457,2084.8,2083.6,0.24585186]
[1770569370318,0.57860457,2084.8,2083.6,0.00570186]
[1770569370826,0.57860457,2084.8,2083.0,0.56763246]
[1770569371323,0.57860457,2084.8,2082.9,0.24023]
[1770569371734,0.57860457,2084.8,2083.0,0.56763246]
[1770569371918,0.57860457,2084.8,2083.4,0.56763246]
[1770569372323,0.57860457,2084.8,2083.3,0.24019]
[1770569372523,0.57860457,2084.8,2083.3,0.79114635]
[1770569372729,0.57860457,2084.7,2083.3,0.22351389]
[1770569373025,0.57860457,2084.9,2083.8,0.80776246]
[1770569373223,0.57860457,2084.9,2083.9,0.56763246]
[1770569373421,0.57860457,2086.4,2084.1,0.56763246]
[1770569373628,0.57860457,2086.2,2084.4,0.56763246]
[1770569373832,0.57860457,2086.0,2084.4,0.56763246]
[1770569374027,0.57860457,2085.9,2084.4,0.56763246]
[1770569374228,0.57860457,2085.8,2084.4,0.56763246]
[1770569374428,0.58425133,2085.8,2084.4,0.00514985]
[1770569374631,0.57860457,2085.4,2083.4,0.56763246]
[1770569374834,0.00564676,2085.8,2083.4,0.56763246]
[1770569374835,0.57860457,2085.2,2083.4,0.56763246]
[1770569375132,0.57860457,2085.2,2083.7,0.80776246]
[1770569375633,0.57860457,2085.2,2083.7,0.81087631]
[1770569376733,0.57860457,2085.2,2083.9,0.56763246]
[1770569377323,0.57860457,2085.0,2084.0,0.56763246]
[1770569377528,0.57860457,2085.0,2083.9,0.24012]
[1770569378634,0.57860457,2084.6,2083.7,0.00311385]
[1770569378834,4.781,2084.7,2083.2,0.24019]
[1770569378835,0.57860457,2084.3,2083.2,0.24019]
[1770569379238,0.57860457,2084.2,2083.1,0.56763246]
[1770569379425,0.57860457,2084.0,2083.1,0.56763246]
[1770569379837,0.58336903,2084.0,2083.1,0.56763246]
[1770569380030,0.57860457,2083.9,2083.1,0.56763246]
[1770569380739,0.57860457,2083.9,2082.8,0.56763246]
[1770569381032,0.57860457,2083.9,2082.9,0.56763246]
[1770569381234,0.57860457,2084.5,2083.4,0.24017]
[1770569381434,0.57860457,2084.5,2083.5,0.56763246]
[1770569381638,0.57860457,2084.5,2083.6,0.56763246]
[1770569381829,41.20922707,2085.8,2083.8,0.56763246]
[1770569381830,0.57860457,2084.9,2083.8,0.56763246]
[1770569382034,0.57860457,2084.9,2083.9,0.56763246]
[1770569382230,0.57860457,2084.8,2083.9,0.57239692]
[1770569382732,0.57860457,2084.8,2083.9,0.00476446]
[1770569382930,0.57860457,2084.6,2083.4,0.80780246]
[1770569383130,0.57860457,2084.6,2083.1,0.56763246]
[1770569383536,45.581,2084.7,2083.2,0.56763246]
[1770569383537,0.57860457,2084.3,2083.2,0.56763246]
[1770569384732,0.57860457,2084.3,2083.2,0.80782246]
[1770569384934,0.00386863,2084.9,2083.9,0.58928784]
[1770569384935,0.57195453,2084.8,2083.9,0.58928784]
[1770569385439,0.57195453,2084.8,2083.5,0.58928784]
[1770569386339,0.57195453,2084.7,2083.5,0.58928784]
[1770569386539,0.57195453,2084.6,2083.3,0.24019]
[1770569386733,0.57195453,2084.6,2083.4,0.58928784]
[1770569387836,0.57582316,2084.9,2084.0,0.58928784]
[1770569389039,0.57195453,2085.3,2084.3,0.58928784]
[1770569389242,0.57195453,2085.3,2084.0,0.58928784]
[1770569389444,0.57195453,2084.8,2083.7,0.58928784]
[1770569389639,0.57195453,2084.6,2083.7,0.58928784]
[1770569390034,3.27803337,2085.1,2083.8,0.58928784]
[1770569390238,0.57195453,2085.1,2084.0,0.2401]
[1770569390631,2.70607884,2085.2,2083.7,0.00386863]
[1770569390632,2.70607884,2084.8,2083.7,0.00386863]
[1770569390833,0.57195453,2084.7,2083.7,0.00386863]
[1770569391037,0.57195453,2084.6,2083.7,0.00386863]
[1770569391233,3.28263434,2084.6,2083.7,0.00386863]
[1770569391438,0.57195453,2084.5,2083.7,0.00386863]
[1770569392745,40.80460097,2084.6,2083.7,0.59315647]
[1770569393043,0.00460097,2084.6,2083.7,0.59315647]
[1770569393246,0.5765555,2084.6,2083.7,0.59315647]
[1770569393439,41.3765555,2084.6,2083.7,0.59315647]
[1770569393745,0.5765555,2084.6,2083.8,0.58928784]
[1770569393943,0.5765555,2084.6,2083.7,0.24400863]
[1770569394245,41.37195453,2084.5,2083.7,0.83329647]
[1770569394549,0.57195453,2084.4,2083.7,0.83329647]
[1770569395349,0.57195453,2084.4,2083.7,0.24400863]
[1770569396042,0.57195453,2084.4,2083.1,0.82949784]
[1770569396043,0.57195453,2084.2,2083.1,0.82949784]
[1770569396247,0.57195453,2083.9,2082.8,0.58928784]
[1770569396437,0.57195453,2083.9,2082.2,4.82452075]
[1770569396438,0.57195453,2083.6,2082.2,4.82452075]
[1770569396643,2.70607884,2083.0,2081.7,0.02811924]
[1770569396842,0.57195453,2082.8,2081.9,0.58928784]
[1770569397045,0.00602128,2082.8,2082.2,0.58928784]
[1770569397749,0.00602128,2082.8,2082.1,0.24032]
[1770569398148,0.57797581,2082.8,2082.1,0.24032]
[1770569398449,0.57797581,2082.8,2081.7,0.02811924]
[1770569398743,0.58255214,2082.6,2081.7,0.02811924]
[1770569399137,0.00602128,2082.8,2081.9,0.24034]
[1770569399340,2.70607884,2083.1,2082.3,0.82958784]
[1770569399341,0.57195453,2083.1,2082.3,0.82958784]
[1770569399541,0.57195453,2083.6,2082.4,0.58928784]
[1770569400052,0.57195453,2083.5,2082.1,0.58928784]
[1770569400342,0.00350319,2083.5,2082.4,0.58928784]
[1770569400546,0.57545772,2083.5,2082.4,0.58928784]
[1770569401140,0.57545772,2083.5,2082.5,0.58928784]
[1770569401347,0.57545772,2083.5,2082.1,0.59427892]
[1770569401543,0.57545772,2083.5,2082.1,0.00499108]
[1770569401748,0.57195453,2082.7,2081.8,0.58928784]
[1770569401948,0.57195453,2083.0,2082.1,0.58928784]
[1770569402146,0.00350319,2083.5,2082.6,0.82954784]
[1770569402349,0.57195453,2084.3,2083.3,0.58928784]
[1770569403244,0.5761719,2084.3,2083.3,0.59447073]
[1770569403655,0.57195453,2084.8,2083.7,0.58928784]
[1770569403846,6.88544112,2085.6,2083.3,0.00518289]
[1770569403847,0.57195453,2085.5,2084.2,0.24008]
[1770569404152,0.57195453,2085.5,2083.5,4.23523291]
[1770569404153,0.57195453,2085.5,2084.4,0.58928784]
[1770569404447,2.70607884,2086.1,2084.8,0.24001]
[1770569404448,0.57195453,2086.1,2084.8,0.24001]
[1770569404650,0.00589157,2086.1,2085.0,0.58928784]
[1770569404953,0.57195453,2086.7,2085.6,0.58928784]
[1770569405253,0.57195453,2087.5,2085.8,0.58928784]
[1770569405553,0.57195453,2087.1,2085.8,0.58928784]
[1770569405944,0.57569136,2087.1,2085.8,0.58928784]
[1770569406952,0.57569136,2087.1,2085.4,0.58928784]
[1770569407150,0.57195453,2087.0,2085.4,0.58928784]
[1770569408053,0.57195453,2086.9,2085.0,0.58928784]
[1770569408448,0.57195453,2086.6,2085.0,0.58928784]
[1770569408652,0.57195453,2086.4,2084.7,0.58928784]
[1770569408949,0.57195453,2086.4,2084.8,0.59410415]
[1770569409252,0.57195453,2086.8,2085.2,0.58928784]
[1770569410454,0.57195453,2086.7,2084.9,0.58928784]
[1770569411351,0.57195453,2086.7,2084.8,0.00481631]
[1770569411352,3.27803337,2086.7,2084.8,0.00481631]
[1770569411563,0.57195453,2086.6,2084.8,0.59410415]
[1770569411862,0.57195453,2086.5,2084.8,0.59410415]
[1770569412546,0.57195453,2086.5,2084.8,0.00481631]
[1770569412849,0.57195453,2086.0,2083.9,0.58928784]
[1770569413048,0.57195453,2085.8,2083.9,0.58928784]
[1770569413852,0.57195453,2085.8,2083.9,0.59374852]
[1770569414355,0.57195453,2086.2,2084.9,0.58928784]
[1770569414654,41.57800942,2086.6,2084.0,6.203]
[1770569414655,0.55580859,2087.0,2085.4,0.58928784]
[1770569414858,0.55580859,2087.0,2085.4,0.59532]
[1770569415059,40.8,2086.9,2085.4,0.59532]
[1770569415756,41.38662309,2086.9,2085.4,0.83526]
[1770569415958,41.38662309,2086.9,2085.5,0.54434952]
[1770569416159,0.58662309,2087.2,2085.6,0.78426952]
[1770569416347,31.015,2087.5,2085.7,0.54434952]
[1770569416348,0.59035992,2087.1,2085.7,0.54434952]
[1770569416856,41.38662309,2087.0,2085.7,0.54434952]
[1770569417257,0.58662309,2086.9,2085.7,0.54434952]
[1770569417764,0.58662309,2086.9,2085.6,0.23992]
[1770569417952,0.58662309,2086.9,2085.6,0.78426952]
[1770569418154,0.58662309,2086.9,2085.4,0.00603216]
[1770569418155,5.36762309,2086.9,2085.4,0.00603216]
[1770569418457,0.58662309,2086.6,2085.0,0.54434952]
[1770569418856,0.58662309,2086.6,2085.4,0.54434952]
[1770569419560,0.58662309,2086.6,2085.4,0.5483221]
[1770569419762,0.58662309,2086.9,2085.4,0.5483221]
[1770569420554,0.58662309,2086.9,2085.4,0.00397258]
[1770569420962,0.58662309,2086.9,2084.0,2.83515542]
[1770569420963,0.58662309,2086.4,2084.8,0.54434952]
[1770569421260,0.58662309,2086.4,2084.4,0.54434952]
[1770569421570,0.58662309,2086.2,2084.4,0.54434952]
[1770569421858,0.58662309,2086.0,2084.4,0.54434952]
[1770569422251,0.58662309,2085.8,2084.4,0.54434952]
[1770569422452,40.8,2085.9,2084.7,0.54434952]
[1770569422650,40.8,2085.9,2084.7,0.78436952]
[1770569422852,40.8,2085.9,2084.8,0.54434952]
[1770569423562,40.8,2085.9,2084.9,0.54434952]
[1770569423961,0.58662309,2086.7,2085.0,6.65478366]
[1770569424160,0.58662309,2086.7,2085.1,0.54434952]
[1770569424563,31.01173683,2087.1,2085.9,0.54434952]
[1770569424564,0.58662309,2087.0,2085.9,0.54434952]
[1770569425061,40.8,2086.9,2085.9,0.54434952]
[1770569425263,0.00373683,2087.1,2086.3,0.54434952]
[1770569426466,0.58662309,2087.5,2086.4,0.54434952]
[1770569426653,0.58662309,2087.8,2086.5,0.54434952]
[1770569427459,0.59220139,2087.8,2086.5,0.54855712]
[1770569429359,0.0055783,2087.8,2086.7,0.54434952]
[1770569429960,0.59220139,2087.8,2086.9,0.54434952]
[1770569430468,0.59220139,2087.8,2086.8,0.23978]
[1770569430967,0.59220139,2087.8,2086.6,0.54434952]
[1770569432868,40.8,2087.7,2086.6,0.54434952]
[1770569433254,41.38662309,2087.7,2086.6,0.54434952]
[1770569433462,0.0055783,2087.8,2086.6,0.54434952]
[1770569433768,0.58662309,2088.4,2087.3,0.54434952]
[1770569433953,72.81254942,2089.0,2087.3,0.54434952]
[1770569433954,40.8,2088.3,2087.4,0.54434952]
[1770569434260,0.58662309,2088.7,2087.5,0.54434952]
[1770569434462,0.58662309,2088.9,2087.7,0.23967]
[1770569434660,0.58662309,2089.2,2088.0,0.54434952]
[1770569434861,40.8,2089.3,2088.1,0.54434952]
[1770569435168,0.58662309,2089.3,2088.1,0.78396952]
[1770569435359,0.58662309,2089.8,2088.4,0.54434952]
[1770569435558,41.57800942,2090.2,2087.6,2.82152052]
[1770569435559,0.58662309,2090.0,2088.5,0.54434952]
[1770569435766,41.39188423,2090.0,2088.7,0.54434952]
[1770569435960,0.58662309,2089.9,2088.7,0.54434952]
[1770569437670,40.80526114,2090.0,2088.8,0.54434952]
[1770569438560,0.00526114,2090.0,2089.0,0.54434952]
[1770569439165,0.59188423,2090.0,2089.0,0.54434952]
[1770569439369,0.00526114,2090.0,2089.0,0.54434952]
[1770569439568,0.58662309,2090.3,2088.9,0.23954]
[1770569439569,0.58662309,2090.3,2089.2,0.54434952]
[1770569440069,0.58662309,2090.3,2088.9,0.23954]
[1770569440070,0.58662309,2090.3,2088.9,0.54434952]
[1770569440462,0.59156068,2090.3,2088.9,0.54434952]
[1770569440663,0.58662309,2090.0,2088.5,0.00360563]
[1770569441067,0.58662309,2090.0,2088.5,0.54795515]
[1770569441269,0.00493759,2090.3,2087.9,0.54434952]
[1770569441270,0.58662309,2089.6,2087.9,0.54434952]
[1770569442164,0.58662309,2089.5,2087.9,0.54434952]
[1770569442474,0.58662309,2089.5,2087.9,0.54926308]
[1770569442972,0.58662309,2089.3,2087.9,0.54926308]
[1770569443871,0.58662309,2089.3,2088.0,0.54434952]
[1770569446473,0.58290553,2089.6,2088.3,0.57567075]
[1770569446774,0.58290553,2089.8,2088.3,0.57567075]
[1770569446968,0.58290553,2089.6,2088.3,0.57567075]
[1770569450173,0.58290553,2089.5,2088.0,0.57567075]
[1770569451478,0.58290553,2089.2,2088.0,0.57567075]
[1770569451679,5.60341553,2089.2,2087.9,0.00491356]
[1770569451877,0.58290553,2089.1,2087.9,0.58058431]
[1770569452472,0.58290553,2088.9,2087.9,0.58058431]
[1770569453077,0.58290553,2089.2,2087.9,0.58058431]
[1770569453567,40.8,2089.1,2087.9,0.58058431]
[1770569453970,41.38290553,2089.1,2087.9,0.58058431]
[1770569454167,5.36390553,2089.0,2087.9,0.00491356]
[1770569454375,0.58290553,2088.8,2087.9,0.00491356]
[1770569454575,5.36971269,2088.8,2087.9,0.00491356]
[1770569454776,0.58290553,2088.3,2087.1,0.57567075]
[1770569455167,0.58290553,2088.2,2087.1,0.57567075]
[1770569455372,0.58290553,2088.2,2086.8,0.57567075]
[1770569455373,0.58290553,2088.1,2086.8,0.57567075]
[1770569455567,0.58290553,2088.0,2086.8,0.57567075]
[1770569455771,0.58290553,2088.0,2086.8,0.58156194]
[1770569457075,0.58290553,2087.9,2086.8,0.58156194]
[1770569457469,0.58290553,2087.9,2086.8,0.00589119]
[1770569457671,0.58290553,2087.6,2085.9,0.57567075]
[1770569457869,0.58290553,2087.4,2085.9,0.57567075]
[1770569458075,0.58290553,2087.4,2086.1,0.57567075]
[1770569458274,0.58290553,2087.7,2086.4,0.57567075]
[1770569459073,40.8,2087.6,2086.4,0.57567075]
[1770569459475,0.58290553,2087.5,2086.4,0.57567075]
[1770569460586,0.58290553,2087.5,2086.1,0.57567075]
[1770569460979,0.58290553,2087.3,2085.8,0.57567075]
[1770569461181,0.58290553,2087.1,2085.3,0.57567075]
[1770569461478,0.58290553,2087.0,2085.3,0.57567075]
[1770569461679,0.58290553,2086.9,2085.3,0.57567075]
[1770569462787,0.58290553,2086.7,2085.3,0.57567075]
[1770569463481,0.58290553,2086.6,2084.7,0.57567075]
[1770569463878,0.58290553,2086.5,2084.8,0.57567075]
[1770569464180,0.58290553,2086.2,2084.5,0.57567075]
[1770569464386,0.58290553,2086.2,2085.0,0.57567075]
[1770569464586,30.978,2086.5,2085.0,0.57567075]
[1770569464587,0.58290553,2086.0,2085.0,0.57567075]
[1770569465086,0.58290553,2086.0,2084.6,0.57567075]
[1770569466485,0.58290553,2085.8,2083.5,0.57567075]
[1770569466682,0.23993,2085.6,2083.5,0.57567075]
[1770569466882,0.58290553,2085.5,2083.5,0.57567075]
[1770569467188,0.58290553,2085.3,2083.5,0.57567075]
[1770569468887,0.58290553,2085.1,2083.5,0.57567075]
[1770569469284,0.58290553,2084.9,2082.8,0.57567075]
[1770569469491,0.58290553,2084.8,2082.8,0.57567075]
[1770569469786,0.58290553,2084.8,2082.8,0.58108459]
[1770569469986,0.58290553,2084.7,2082.8,0.58108459]
[1770569470182,38.51729237,2085.4,2082.8,0.58108459]
[1770569470183,0.58290553,2084.3,2082.8,0.00541384]
[1770569470378,0.58290553,2084.1,2082.8,0.00541384]
[1770569470581,0.58290553,2084.1,2082.8,0.58108459]
[1770569471596,0.58290553,2083.9,2082.8,0.00541384]
[1770569471891,0.58290553,2083.9,2081.8,0.24036]
[1770569471892,0.58290553,2083.9,2081.9,0.57567075]
[1770569472285,0.58290553,2083.7,2081.9,0.57567075]
[1770569472590,13.67790553,2083.7,2082.1,0.57567075]
[1770569472782,0.58290553,2083.6,2082.1,0.57567075]
[1770569473185,0.58290553,2084.2,2082.3,0.57567075]
[1770569473384,0.58290553,2084.0,2082.3,0.57567075]
[1770569475790,23.426,2084.1,2082.3,0.57567075]
[1770569475791,0.56281021,2083.8,2082.3,0.57567075]
[1770569476384,0.56281021,2083.8,2082.4,0.58878494]
[1770569476696,0.5667535,2084.3,2082.6,0.58878494]
[1770569476886,0.00394329,2084.3,2083.1,0.82898494]
[1770569477082,0.5667535,2084.3,2083.2,0.58878494]
[1770569477287,0.5667535,2084.3,2082.6,0.58878494]
[1770569477591,0.56281021,2083.8,2082.6,0.58878494]
[1770569478289,0.56281021,2083.8,2082.0,0.58878494]
[1770569478683,0.56281021,2083.5,2082.1,0.58878494]
[1770569479084,0.56281021,2083.4,2082.1,0.58878494]
[1770569479387,0.56281021,2083.4,2082.2,0.58878494]
[1770569480790,0.56281021,2083.4,2082.3,0.58878494]
[1770569480985,0.56281021,2083.4,2082.2,0.24031]
[1770569480986,0.56281021,2083.7,2082.5,0.58878494]
[1770569481594,0.56281021,2083.7,2082.6,0.58878494]
[1770569482495,41.36281021,2083.7,2082.6,0.58878494]
[1770569482794,41.36281021,2083.7,2082.7,0.58878494]
[1770569483992,0.5667535,2084.3,2083.1,0.58878494]
[1770569484500,0.56281021,2084.1,2083.1,0.58878494]
[1770569485290,0.56281021,2083.9,2083.1,0.58878494]
[1770569485998,0.56281021,2084.1,2083.1,0.58878494]
[1770569486692,0.56281021,2083.7,2082.4,0.58878494]
[1770569487094,0.56281021,2083.7,2082.5,0.82905494]
[1770569487400,0.56281021,2083.7,2082.6,0.58878494]
[1770569488097,0.56281021,2084.0,2082.7,0.58878494]
[1770569488591,0.56281021,2083.9,2082.7,0.58878494]
[1770569488990,0.56281021,2083.9,2082.4,0.58878494]
[1770569489190,0.56281021,2083.9,2082.7,0.58878494]
[1770569489594,0.56281021,2083.9,2082.8,0.82902494]
[1770569489793,0.56281021,2083.9,2082.9,0.58878494]
[1770569490387,0.56281021,2083.9,2082.6,0.58878494]
[1770569490590,0.56281021,2083.6,2082.6,0.58878494]
[1770569490888,0.56281021,2083.6,2082.3,0.58878494]
[1770569492293,0.56281021,2083.5,2082.3,0.58878494]
[1770569492693,0.56281021,2083.5,2082.4,0.58878494]
[1770569495193,0.56281021,2083.8,2082.4,0.82907494]
[1770569495388,0.56281021,2083.7,2082.5,0.58878494]
[1770569496398,3.31310258,2083.7,2082.6,0.58878494]
[1770569496598,0.56281021,2083.7,2082.6,0.58878494]
[1770569497388,7.53129237,2083.8,2082.6,0.58878494]
[1770569497389,0.56281021,2083.6,2082.6,0.58878494]
[1770569497595,3.31310258,2083.8,2082.6,0.58878494]
[1770569497789,3.31310258,2083.8,2082.7,0.24025]
[1770569497996,0.56281021,2083.8,2082.9,0.58878494]
[1770569498393,3.31310258,2084.0,2082.9,0.58878494]
[1770569498590,2.75029237,2084.1,2083.0,0.58878494]
[1770569498795,0.56281021,2084.1,2083.0,0.58878494]
[1770569498997,0.56281021,2084.1,2083.2,0.58878494]
[1770569499900,40.8,2084.2,2083.2,0.58878494]
[1770569500108,3.31704587,2084.3,2083.2,0.58878494]
[1770569500408,0.00394329,2084.3,2083.4,0.58878494]
[1770569501400,0.56281021,2084.7,2083.5,0.58878494]
[1770569501603,0.56281021,2084.7,2083.7,0.24013]
[1770569501901,40.8,2084.7,2083.8,0.58878494]
[1770569502492,0.56281021,2084.8,2083.8,0.58878494]
[1770569502898,0.56281021,2084.7,2083.8,0.59311533]
[1770569503105,0.56281021,2084.5,2083.8,0.59311533]
[1770569504302,0.0054415,2084.8,2083.8,0.59311533]
[1770569504303,0.56825171,2084.8,2083.8,0.59311533]
[1770569505107,0.56825171,2084.8,2084.1,0.53878478]
[1770569505108,0.0054415,2084.8,2084.1,0.53878478]
[1770569505300,5.5083529,2085.4,2083.8,0.00433039]
[1770569505301,0.58245703,2085.4,2084.3,0.53878478]
[1770569505497,0.58245703,2085.4,2084.3,0.77884478]
[1770569505703,0.58245703,2085.7,2084.5,0.53878478]
[1770569506100,2.75029237,2086.1,2084.6,0.53878478]
[1770569506318,0.58245703,2086.0,2084.7,0.53878478]
[1770569506811,0.58245703,2086.0,2084.7,0.77880478]
[1770569507112,0.58835455,2086.1,2085.0,0.53878478]
[1770569507411,0.58835455,2086.1,2084.8,0.53878478]
[1770569507803,0.58835455,2086.1,2084.6,0.53878478]
[1770569507804,0.58245703,2085.8,2084.6,0.53878478]
[1770569508106,0.58245703,2085.8,2083.8,0.00433039]
[1770569508107,0.58245703,2085.5,2084.3,0.53878478]
[1770569509412,0.58245703,2085.5,2084.4,0.53878478]
[1770569509911,2.75029237,2086.0,2084.6,0.53878478]
[1770569509912,0.58245703,2086.0,2084.6,0.53878478]
[1770569510101,0.58245703,2086.0,2084.7,0.53878478]
[1770569512316,0.58245703,2085.9,2084.7,0.53878478]
[1770569512613,0.58245703,2085.8,2084.7,0.53878478]
[1770569513011,0.58245703,2085.6,2084.7,0.53878478]
[1770569513218,40.8,2085.7,2084.2,0.53878478]
[1770569513219,0.58245703,2085.4,2084.2,0.53878478]
[1770569513617,0.58245703,2085.3,2084.2,0.53878478]
[1770569513815,0.58245703,2085.3,2083.8,0.00433039]
[1770569513816,0.58245703,2085.1,2083.9,0.53878478]
[1770569514214,0.58245703,2084.9,2083.9,0.53878478]
[1770569517025,0.58245703,2085.2,2084.1,0.53878478]
[1770569517523,4.781,2085.5,2084.2,0.53878478]
[1770569517524,0.58245703,2085.5,2084.2,0.53878478]
[1770569519919,0.58245703,2085.4,2084.2,0.53878478]
[1770569520118,0.58245703,2085.3,2084.2,0.53878478]
[1770569520319,0.58245703,2085.1,2083.9,0.53878478]
[1770569520917,0.58245703,2085.1,2083.8,0.00433039]
[1770569521122,0.82243703,2085.1,2083.8,0.00433039]
[1770569521324,0.58245703,2085.0,2083.8,0.54311517]
[1770569521625,0.58245703,2084.3,2083.2,0.53878478]
[1770569522024,0.58245703,2084.8,2083.2,0.53878478]
[1770569522328,0.58245703,2084.8,2083.4,0.53878478]
[1770569522527,0.58245703,2084.7,2083.4,0.54278711]
[1770569523926,0.58245703,2084.7,2083.5,0.53878478]
[1770569524126,0.00568173,2084.8,2084.0,0.53878478]
[1770569524329,0.58245703,2085.3,2084.3,0.24007]
[1770569524632,0.58245703,2085.6,2084.5,0.53878478]
[1770569525324,0.00361982,2085.6,2084.5,0.53878478]
[1770569525525,0.58245703,2086.2,2084.9,0.24]
[1770569525732,0.58245703,2086.2,2085.0,0.53878478]
[1770569525923,0.58245703,2086.1,2085.0,0.53878478]
[1770569526529,0.58716001,2086.1,2085.0,0.00367351]
[1770569527524,0.58245703,2086.0,2084.4,0.77884478]
[1770569527734,0.58245703,2086.0,2083.9,2.84343022]
[1770569527735,3.35315769,2085.9,2083.9,0.53878478]
[1770569527933,4.781,2085.6,2083.9,0.53878478]
[1770569528135,0.58245703,2085.3,2083.6,0.53878478]
[1770569528434,0.58245703,2085.2,2083.6,0.53878478]
[1770569528632,0.58245703,2085.2,2083.6,0.54361257]
[1770569529631,0.58245703,2085.2,2083.7,0.53878478]
[1770569529831,0.58245703,2085.2,2084.1,0.24009]
[1770569530223,0.58245703,2085.1,2083.6,0.54361257]
[1770569530428,0.58245703,2085.0,2083.6,0.54361257]
[1770569531434,40.8,2084.9,2083.6,0.54361257]
[1770569531736,0.58245703,2084.8,2083.6,0.54361257]
[1770569532343,0.58245703,2084.6,2083.6,0.00482779]
[1770569532529,0.58245703,2084.6,2083.0,0.24022]
[1770569532530,0.58245703,2084.4,2083.1,0.53878478]
[1770569533141,0.58245703,2084.3,2083.1,0.53878478]
[1770569533340,5.36345703,2084.3,2083.1,0.53878478]
[1770569533541,0.58245703,2084.2,2083.1,0.5431924]
[1770569533836,0.58245703,2084.2,2083.1,0.00440762]
[1770569534038,0.58245703,2084.0,2082.5,0.53878478]
[1770569535237,0.55292799,2084.3,2083.2,0.57620779]
[1770569535639,33.79470066,2084.8,2083.5,0.57620779]
[1770569535640,0.55669343,2084.6,2083.5,0.57620779]
[1770569536437,41.57800942,2085.3,2083.5,0.57620779]
[1770569536438,0.55292799,2085.4,2084.2,0.57620779]
[1770569536636,0.55292799,2085.4,2084.2,0.81627779]
[1770569536937,41.35292799,2085.4,2084.3,0.57620779]
[1770569537140,40.8,2085.4,2084.3,0.57620779]
[1770569537439,40.80382064,2085.4,2084.3,0.58180736]
[1770569538131,0.55292799,2085.3,2084.3,0.00559957]
[1770569538432,0.55292799,2085.3,2083.7,2.84343022]
[1770569538433,0.55292799,2085.1,2083.7,0.57620779]
[1770569538734,0.55292799,2084.9,2083.7,0.57620779]
[1770569541432,0.55292799,2084.8,2083.7,0.57620779]
[1770569542133,40.8,2085.0,2083.4,2.84343022]
[1770569542339,0.55674863,2085.4,2084.3,0.57620779]
[1770569542835,40.8,2085.3,2084.3,0.57620779]
[1770569544838,0.55674863,2085.4,2084.3,0.57620779]
[1770569545340,41.35674863,2085.4,2084.3,0.57620779]
[1770569546540,0.55292799,2085.3,2084.3,0.57620779]
[1770569547140,40.80382064,2085.4,2084.3,0.57620779]
[1770569547340,0.55292799,2085.3,2084.0,0.57620779]
[1770569549043,0.55292799,2085.3,2084.2,0.57620779]
[1770569549444,0.55292799,2085.3,2084.3,0.57620779]
[1770569550049,0.55292799,2085.3,2084.2,0.24008]
[1770569550339,0.55292799,2085.3,2084.3,0.57620779]
[1770569551642,0.55292799,2085.3,2084.4,0.57620779]
[1770569555145,0.00382064,2085.4,2084.4,0.57620779]
[1770569555345,0.55292799,2085.7,2084.3,0.57620779]
[1770569555552,0.55292799,2085.6,2084.3,0.57620779]
[1770569555847,0.55292799,2085.4,2084.3,0.57620779]
[1770569556353,0.55292799,2085.3,2084.3,0.58002843]
[1770569557753,0.00581073,2085.4,2084.3,0.58002843]
[1770569558052,0.55873872,2085.4,2084.3,0.58002843]
[1770569558647,0.00581073,2085.4,2084.4,0.81626779]
[1770569558946,0.00581073,2085.4,2084.5,0.57620779]
[1770569559347,0.00581073,2085.4,2084.5,0.81625779]
[1770569559549,0.00581073,2085.4,2084.6,0.57620779]
[1770569560256,0.55292799,2086.0,2084.8,0.57620779]
[1770569560856,0.55292799,2085.8,2084.8,0.57620779]
[1770569561250,0.55292799,2085.7,2084.8,0.57620779]
[1770569561451,0.79284799,2085.7,2084.3,0.00382064]
[1770569561653,3.32362865,2085.2,2084.3,0.00382064]
[1770569561853,0.55292799,2085.1,2083.9,0.57620779]
[1770569562258,0.55292799,2085.1,2083.7,0.57620779]
[1770569562259,0.55292799,2085.0,2083.7,0.57620779]
[1770569562457,0.55292799,2084.6,2083.4,0.57620779]
[1770569562754,0.55292799,2084.6,2083.4,0.58149383]
[1770569563148,4.803,2084.7,2083.4,0.58149383]
[1770569563149,5.35592799,2084.5,2083.4,0.00528604]
[1770569563358,0.55292799,2084.4,2083.4,0.00528604]